[Event "Hungarian Rapid-ch 2022"]
[Site "Ajka"]
[Date "2022.07.15"]
[Round "1.30"]
[White "Borus, Andras"]
[Black "Krstulovic, Alex"]
[Result "0-1"]
[ECO "B02"]
[WhiteElo "2014"]
[BlackElo "2413"]
[Annotator "ChessBase"]
[PlyCount "70"]
[EventDate "2022.07.15"]
[EventType "swiss"]
[EventCountry "HUN"]
[SourceTitle "playchess.com"]
[Source "ChessBase"]
[SourceQuality "1"]
[TimeControl "900+10"]

1. e4 {[%emt 0:00:14]} Nf6 {[%emt 0:00:24]} 2. d3 {[%emt 0:00:11]} c5 {[%emt 0:00:06]} 3. g3 {[%emt 0:00:19]} d5 {[%emt 0:00:04]} 4. Nd2 {[%emt 0:00:14]} Nc6 {[%emt 0:00:02]} 5. Ngf3 {[%emt 0:00:32]} e6 {[%emt 0:00:05]} 6. Bg2 {[%emt 0:00:07]} b6 {[%emt 0:00:04]} 7. O-O {[%emt 0:00:06]} Bb7 {[%emt 0:00:02]} 8. Re1 {[%emt 0:00:30]} Be7 {[%emt 0:00:02]} 9. e5 {[%emt 0:00:19]} Nd7 {[%emt 0:00:02]} 10. c3 {[%emt 0:00:22]} Rc8 {[%emt 0:00:12]} 11. Nf1 {[%emt 0:00:22]} O-O {[%emt 0:00:07]} 12. h4 {[%emt 0:00:06]} Qc7 {[%emt 0:00:15]} 13. Bf4 {[%emt 0:00:08]} d4 {[%emt 0:01:04]} 14. c4 {[%emt 0:00:26]} Nd8 {[%emt 0:00:40]} 15. N1h2 {[%emt 0:00:37]} Qc6 {[%emt 0:00:07]} 16. h5 {[%emt 0:01:38]} b5 {[%emt 0:00:34]} 17. b3 {[%emt 0:00:19]} f5 {[%emt 0:01:25]} 18. exf6 {[%emt 0:01:11]} Bxf6 {[%emt 0:00:05]} 19. Nh4 {[%emt 0:01:24]} Qb6 {[%emt 0:00:04]} 20. Bxb7 {[%emt 0:01:52]} Qxb7 21. Qg4 {[%emt 0:01:45]} e5 {[%emt 0:00:30]} 22. Bd2 {[%emt 0:00:16]} Bxh4 {[%emt 0:00:16]} 23. Qxh4 {[%emt 0:00:22]} bxc4 {[%emt 0:00:57]} 24. bxc4 {[%emt 0:00:26]} Qb2 {[%emt 0:00:01]} 25. Rad1 {[%emt 0:00:41]} Nc6 {[%emt 0:00:02]} 26. Qg4 {[%emt 0:01:04]} Nf6 {[%emt 0:00:22]} 27. Qe6+ {[%emt 0:00:27]} Kh8 {[%emt 0:00:01]} 28. Ng4 {[%emt 0:00:17]} Rce8 {[%emt 0:00:21]} 29. Qf5 {[%emt 0:00:17]} Ne7 {[%emt 0:02:25]} 30. Qg5 {[%emt 0:00:08]} h6 {[%emt 0:00:10]} 31. Qh4 {[%emt 0:00:33]} Nf5 {[%emt 0:00:33]} 32. Qh3 {[%emt 0:00:03]} Nd7 {[%emt 0:00:19]} 33. Qg2 {[%emt 0:00:43]} e4 {[%emt 0:01:45]} 34. Rxe4 {[%emt 0:00:18]} Qc2 {[%emt 0:00:02]} 35. Ree1 {[%emt 0:00:30]} Rxe1+ {[%emt 0:00:01]} 0-1

[Event "Hungarian Rapid-ch 2022"]
[Site "Ajka"]
[Date "2022.07.15"]
[Round "2.1"]
[White "Szelenyi, Norbert"]
[Black "Berkes, Ferenc"]
[Result "0-1"]
[ECO "A06"]
[WhiteElo "2277"]
[BlackElo "2649"]
[Annotator "ChessBase"]
[PlyCount "56"]
[EventDate "2022.07.15"]
[EventType "swiss"]
[EventCountry "HUN"]
[SourceTitle "playchess.com"]
[Source "ChessBase"]
[SourceQuality "1"]
[TimeControl "900+10"]

1. g3 {[%emt 0:00:16]} d5 {[%emt 0:00:12]} 2. Nf3 {[%emt 0:00:02]} Nd7 {[%emt 0:00:09]} 3. c4 dxc4 4. Na3 e5 5. Nxc4 e4 6. Nd4 Nb6 7. Nxb6 axb6 8. Nc2 Nf6 9. Bg2 {[%emt 0:01:39]} h5 {[%emt 0:02:23]} 10. h4 {[%emt 0:00:19]} Bd6 {[%emt 0:02:37]} 11. d3 {[%emt 0:03:03]} Bf5 {[%emt 0:00:02]} 12. dxe4 {[%emt 0:00:32]} Bxe4 {[%emt 0:00:10]} 13. O-O {[%emt 0:00:43]} Qd7 {[%emt 0:01:31]} 14. Bxe4 {[%emt 0:02:52]} Nxe4 {[%emt 0:00:02]} 15. Qd5 {[%emt 0:02:45]} Nxg3 {[%emt 0:00:38]} 16. Re1 {[%emt 0:00:24]} O-O {[%emt 0:00:39]} 17. Qf3 {[%emt 0:00:21]} Nf5 {[%emt 0:02:16]} 18. Qxh5 {[%emt 0:00:04]} Ra5 {[%emt 0:00:31]} 19. Qg4 {[%emt 0:00:15]} Qc6 {[%emt 0:00:27]} 20. Ne3 {[%emt 0:00:32]} Nh6 {[%emt 0:00:12]} 21. Qg2 {[%emt 0:00:15]} Rh5 {[%emt 0:00:40]} 22. Qxc6 {[%emt 0:01:39]} bxc6 {[%emt 0:00:01]} 23. Ng2 {[%emt 0:00:06]} Nf5 {[%emt 0:00:02]} 24. Bd2 {[%emt 0:02:06]} Re8 {[%emt 0:00:10]} 25. a4 {[%emt 0:00:18]} Nd4 {[%emt 0:00:32]} 26. Rac1 {[%emt 0:00:43]} Rxe2 {[%emt 0:00:12]} 27. Be3 {[%emt 0:00:16]} Rxe1+ {[%emt 0:00:08]} 28. Nxe1 {[%emt 0:00:02]} Ne2+ {[%emt 0:00:02]} 0-1

[Event "Hungarian Rapid-ch 2022"]
[Site "Ajka"]
[Date "2022.07.15"]
[Round "2.2"]
[White "Gledura, Benjamin"]
[Black "Farago, Sandor"]
[Result "1-0"]
[ECO "A05"]
[WhiteElo "2637"]
[BlackElo "2141"]
[Annotator "ChessBase"]
[PlyCount "103"]
[EventDate "2022.07.15"]
[EventType "swiss"]
[EventCountry "HUN"]
[SourceTitle "playchess.com"]
[Source "ChessBase"]
[SourceQuality "1"]
[TimeControl "900+10"]

1. Nf3 {[%emt 0:00:14]} Nf6 {[%emt 0:00:12]} 2. g3 {[%emt 0:00:04]} g6 {[%emt 0:00:02]} 3. b3 {[%emt 0:00:04]} Bg7 {[%emt 0:00:02]} 4. Bb2 {[%emt 0:00:08]} c5 {[%emt 0:00:05]} 5. c4 {[%emt 0:00:07]} Nc6 {[%emt 0:00:15]} 6. Bg2 {[%emt 0:00:06]} d6 {[%emt 0:00:14]} 7. d4 {[%emt 0:00:51]} cxd4 {[%emt 0:00:03]} 8. Nxd4 {[%emt 0:00:02]} Bd7 {[%emt 0:00:18]} 9. Nc3 {[%emt 0:00:15]} Qb6 {[%emt 0:00:30]} 10. e3 {[%emt 0:00:38]} O-O {[%emt 0:00:23]} 11. O-O {[%emt 0:00:06]} Rac8 {[%emt 0:01:02]} 12. Nde2 {[%emt 0:01:20]} Ne5 {[%emt 0:01:54]} 13. Qd2 {[%emt 0:00:32]} Bc6 {[%emt 0:00:16]} 14. e4 {[%emt 0:00:21]} Qa5 {[%emt 0:00:28]} 15. Rfd1 {[%emt 0:01:32]} Rfe8 {[%emt 0:00:18]} 16. Nd4 {[%emt 0:01:31]} a6 {[%emt 0:01:54]} 17. Qe2 {[%emt 0:03:17]} Qb6 {[%emt 0:00:45]} 18. Rac1 {[%emt 0:00:15]} h5 {[%emt 0:00:22]} 19. Nxc6 {[%emt 0:00:04]} bxc6 {[%emt 0:00:09]} 20. Na4 {[%emt 0:00:02]} Qb8 {[%emt 0:00:39]} 21. c5 {[%emt 0:00:03]} Qb5 {[%emt 0:01:13]} 22. Qc2 {[%emt 0:00:54]} Ned7 {[%emt 0:02:02]} 23. cxd6 {[%emt 0:00:29]} exd6 {[%emt 0:00:03]} 24. Rxd6 {[%emt 0:00:10]} Ne5 {[%emt 0:00:25]} 25. h3 {[%emt 0:01:25]} c5 {[%emt 0:00:42]} 26. f4 {[%emt 0:01:58]} Ned7 {[%emt 0:00:08]} 27. Qc4 {[%emt 0:00:44]} Qxc4 {[%emt 0:00:44]} 28. Rxc4 {[%emt 0:00:02]} Re6 {[%emt 0:00:02]} 29. Rd2 {[%emt 0:00:16]} Nb6 {[%emt 0:00:32]} 30. Nxb6 {[%emt 0:00:02]} Rxb6 {[%emt 0:00:02]} 31. e5 {[%emt 0:00:04]} Ne8 {[%emt 0:00:11]} 32. Rd7 {[%emt 0:00:02]} Rc7 {[%emt 0:01:27]} 33. Rd8 {[%emt 0:00:02]} Kf8 {[%emt 0:00:01]} 34. Ba3 {[%emt 0:00:09]} Rb5 {[%emt 0:00:03]} 35. Rd5 {[%emt 0:00:26]} Kg8 {[%emt 0:00:26]} 36. Rcxc5 {[%emt 0:00:23]} Rcxc5 {[%emt 0:00:10]} 37. Rxc5 {[%emt 0:00:03]} Bf8 {[%emt 0:00:12]} 38. Rxb5 {[%emt 0:00:05]} axb5 {[%emt 0:00:01]} 39. Bxf8 {[%emt 0:00:11]} Kxf8 {[%emt 0:00:01]} 40. b4 {[%emt 0:00:19]} Nc7 {[%emt 0:00:07]} 41. Kf2 {[%emt 0:00:02]} Ke7 {[%emt 0:00:01]} 42. Ke3 {[%emt 0:00:02]} Ke6 {[%emt 0:00:11]} 43. Kd4 {[%emt 0:00:16]} Na6 {[%emt 0:00:50]} 44. a3 {[%emt 0:00:02]} Kf5 {[%emt 0:00:26]} 45. Be4+ {[%emt 0:00:02]} Ke6 {[%emt 0:00:01]} 46. Bd5+ {[%emt 0:00:05]} Ke7 {[%emt 0:00:04]} 47. Bc6 {[%emt 0:00:41]} Nc7 {[%emt 0:00:09]} 48. Kc5 {[%emt 0:00:04]} Ke6 {[%emt 0:00:05]} 49. Bxb5 {[%emt 0:00:11]} Kf5 {[%emt 0:00:27]} 50. Bd3+ {[%emt 0:00:02]} Ke6 {[%emt 0:00:04]} 51. a4 {[%emt 0:00:04]} Kd7 {[%emt 0:00:27]} 52. Bc4 {[%emt 0:00:04]} 1-0

[Event "Hungarian Rapid-ch 2022"]
[Site "Ajka"]
[Date "2022.07.15"]
[Round "2.3"]
[White "Kozma, Karoly"]
[Black "Balog, Imre"]
[Result "0-1"]
[ECO "A05"]
[WhiteElo "2213"]
[BlackElo "2594"]
[Annotator "ChessBase"]
[PlyCount "107"]
[EventDate "2022.07.15"]
[EventType "swiss"]
[EventCountry "HUN"]
[SourceTitle "playchess.com"]
[Source "ChessBase"]
[SourceQuality "1"]
[TimeControl "900+10"]

1. Nf3 {[%emt 0:00:13]} Nf6 {[%emt 0:00:23]} 2. b3 {[%emt 0:00:25]} g6 {[%emt 0:00:06]} 3. Bb2 {[%emt 0:00:04]} Bg7 {[%emt 0:00:02]} 4. g3 {[%emt 0:00:02]} O-O {[%emt 0:00:05]} 5. Bg2 {[%emt 0:00:01]} d6 {[%emt 0:00:11]} 6. c4 {[%emt 0:00:57]} e5 {[%emt 0:00:05]} 7. d3 {[%emt 0:00:03]} Re8 {[%emt 0:00:37]} 8. O-O {[%emt 0:00:12]} Nbd7 {[%emt 0:00:08]} 9. Nc3 {[%emt 0:00:31]} c6 {[%emt 0:00:16]} 10. Rc1 {[%emt 0:00:46]} a6 {[%emt 0:00:04]} 11. Nd2 {[%emt 0:01:20]} Nf8 {[%emt 0:00:52]} 12. b4 {[%emt 0:01:30]} h6 {[%emt 0:00:24]} 13. a4 {[%emt 0:00:39]} Be6 {[%emt 0:01:19]} 14. Nde4 {[%emt 0:03:29]} Nxe4 {[%emt 0:00:14]} 15. Nxe4 {[%emt 0:00:02]} Qd7 {[%emt 0:00:16]} 16. c5 {[%emt 0:00:43]} d5 {[%emt 0:01:26]} 17. Nd6 {[%emt 0:00:05]} Reb8 {[%emt 0:00:05]} 18. f4 {[%emt 0:00:20]} f6 {[%emt 0:00:58]} 19. a5 {[%emt 0:00:11]} exf4 {[%emt 0:04:09]} 20. Rxf4 {[%emt 0:00:36]} Nh7 {[%emt 0:00:02]} 21. e4 {[%emt 0:00:35]} dxe4 22. Bxe4 {[%emt 0:00:53]} Ng5 {[%emt 0:00:49]} 23. Kh1 {[%emt 0:02:32]} f5 {[%emt 0:00:42]} 24. Bxg7 {[%emt 0:00:20]} Kxg7 {[%emt 0:00:04]} 25. Bg2 {[%emt 0:00:09]} Nf7 {[%emt 0:00:23]} 26. Rd4 {[%emt 0:00:22]} Qe7 {[%emt 0:00:03]} 27. Qe2 {[%emt 0:00:14]} Qf6 {[%emt 0:00:03]} 28. Qe3 {[%emt 0:00:30]} Rd8 {[%emt 0:01:12]} 29. Re1 {[%emt 0:00:43]} Ba2 {[%emt 0:01:04]} 30. h4 {[%emt 0:00:44]} Nxd6 {[%emt 0:01:32]} 31. Rxd6 {[%emt 0:00:14]} Rxd6 {[%emt 0:00:09]} 32. Qe7+ {[%emt 0:00:13]} Bf7 {[%emt 0:00:22]} 33. cxd6 {[%emt 0:00:07]} Rd8 {[%emt 0:00:29]} 34. Qxb7 {[%emt 0:00:11]} Rxd6 {[%emt 0:00:33]} 35. Qxa6 {[%emt 0:00:03]} f4 {[%emt 0:00:10]} 36. Rf1 {[%emt 0:00:13]} g5 {[%emt 0:00:36]} 37. Qb7 {[%emt 0:00:11]} Rxd3 {[%emt 0:00:33]} 38. Qxc6 {[%emt 0:00:04]} Rxg3 {[%emt 0:00:43]} 39. Qxf6+ {[%emt 0:00:03]} Kxf6 {[%emt 0:00:01]} 40. hxg5+ {[%emt 0:00:11]} hxg5 {[%emt 0:00:01]} 41. a6 {[%emt 0:00:09]} Ra3 {[%emt 0:00:01]} 42. b5 {[%emt 0:00:02]} Bc4 {[%emt 0:00:01]} 43. Rb1 {[%emt 0:00:06]} g4 {[%emt 0:00:20]} 44. b6 {[%emt 0:00:25]} Bxa6 {[%emt 0:00:08]} 45. b7 {[%emt 0:00:07]} Bxb7 {[%emt 0:00:02]} 46. Bxb7 {[%emt 0:00:02]} Kg5 {[%emt 0:00:02]} 47. Bc8 {[%emt 0:00:16]} Rc3 {[%emt 0:00:06]} 48. Bxg4 {[%emt 0:00:18]} Kxg4 {[%emt 0:00:01]} 49. Kg2 {[%emt 0:00:05]} Rc2+ {[%emt 0:00:02]} 50. Kf1 {[%emt 0:00:12]} Kg3 {[%emt 0:00:02]} 51. Rb8 {[%emt 0:00:57]} Rc1+ {[%emt 0:00:12]} 52. Ke2 {[%emt 0:00:01]} f3+ {[%emt 0:00:02]} 53. Ke3 {[%emt 0:00:05]} Re1+ {[%emt 0:00:02]} 54. Kd4 0-1

[Event "Hungarian Rapid-ch 2022"]
[Site "Ajka"]
[Date "2022.07.15"]
[Round "2.4"]
[White "Hera, Imre Jr."]
[Black "Laszlo, Janos"]
[Result "1-0"]
[ECO "A13"]
[WhiteElo "2568"]
[BlackElo "2214"]
[Annotator "ChessBase"]
[PlyCount "59"]
[EventDate "2022.07.15"]
[EventType "swiss"]
[EventCountry "HUN"]
[SourceTitle "playchess.com"]
[Source "ChessBase"]
[SourceQuality "1"]
[TimeControl "900+10"]

1. c4 {[%emt 0:00:13]} e6 {[%emt 0:00:12]} 2. g3 {[%emt 0:00:02]} d5 {[%emt 0:00:02]} 3. Bg2 {[%emt 0:00:02]} Nf6 {[%emt 0:00:02]} 4. Nf3 {[%emt 0:00:02]} c5 {[%emt 0:00:02]} 5. cxd5 {[%emt 0:00:13]} exd5 {[%emt 0:00:02]} 6. d4 {[%emt 0:00:02]} Nc6 {[%emt 0:00:02]} 7. O-O {[%emt 0:00:02]} h6 {[%emt 0:00:04]} 8. Nc3 {[%emt 0:00:05]} Bd6 {[%emt 0:00:06]} 9. Nb5 {[%emt 0:00:19]} Be7 {[%emt 0:00:02]} 10. Bf4 {[%emt 0:00:09]} O-O {[%emt 0:00:03]} 11. dxc5 {[%emt 0:00:27]} Bxc5 {[%emt 0:00:07]} 12. Rc1 {[%emt 0:00:02]} Bb6 {[%emt 0:00:19]} 13. Nfd4 {[%emt 0:01:10]} Nxd4 {[%emt 0:00:34]} 14. Nxd4 {[%emt 0:00:02]} Re8 {[%emt 0:00:22]} 15. h3 {[%emt 0:01:35]} Bd7 {[%emt 0:01:40]} 16. Qd3 {[%emt 0:00:26]} Ne4 {[%emt 0:01:34]} 17. b4 {[%emt 0:03:39]} Qe7 {[%emt 0:03:16]} 18. a3 {[%emt 0:00:15]} Rac8 {[%emt 0:02:29]} 19. Kh2 {[%emt 0:02:07]} Rxc1 {[%emt 0:00:41]} 20. Bxc1 {[%emt 0:00:02]} Rc8 {[%emt 0:00:32]} 21. Bb2 {[%emt 0:00:07]} Rc4 {[%emt 0:00:41]} 22. e3 {[%emt 0:00:36]} h5 {[%emt 0:00:14]} 23. Ne2 {[%emt 0:00:52]} Bc6 {[%emt 0:04:16]} 24. Nf4 {[%emt 0:00:24]} Qg5 {[%emt 0:01:10]} 25. h4 {[%emt 0:00:10]} Qh6 {[%emt 0:00:18]} 26. Nxd5 {[%emt 0:00:14]} Bxd5 {[%emt 0:00:13]} 27. Qxd5 {[%emt 0:00:01]} Rc2 {[%emt 0:00:09]} 28. Bxe4 {[%emt 0:00:48]} Rxb2 {[%emt 0:00:05]} 29. Qe5 {[%emt 0:00:01]} Qf6 {[%emt 0:00:17]} 30. Qe8# {[%emt 0:00:04]} 1-0

[Event "Hungarian Rapid-ch 2022"]
[Site "Ajka"]
[Date "2022.07.15"]
[Round "2.5"]
[White "Pap, Peter"]
[Black "Horvath, Csaba"]
[Result "1/2-1/2"]
[ECO "B41"]
[WhiteElo "2159"]
[BlackElo "2506"]
[Annotator "ChessBase"]
[PlyCount "86"]
[EventDate "2022.07.15"]
[EventType "swiss"]
[EventCountry "HUN"]
[SourceTitle "playchess.com"]
[Source "ChessBase"]
[SourceQuality "1"]
[TimeControl "900+10"]

1. e4 {[%emt 0:00:12]} c5 {[%emt 0:00:12]} 2. Nf3 {[%emt 0:00:02]} e6 {[%emt 0:00:01]} 3. d4 {[%emt 0:00:12]} cxd4 {[%emt 0:00:02]} 4. Nxd4 {[%emt 0:00:02]} a6 {[%emt 0:00:01]} 5. c4 {[%emt 0:00:28]} Nf6 {[%emt 0:00:05]} 6. Nc3 {[%emt 0:00:02]} Qc7 {[%emt 0:00:20]} 7. a3 {[%emt 0:00:03]} b6 {[%emt 0:00:03]} 8. Be3 {[%emt 0:00:10]} Bb7 {[%emt 0:00:01]} 9. f3 {[%emt 0:00:09]} Be7 {[%emt 0:00:18]} 10. Be2 {[%emt 0:00:03]} d6 {[%emt 0:00:02]} 11. O-O {[%emt 0:00:06]} Nbd7 {[%emt 0:00:04]} 12. a4 {[%emt 0:00:18]} Rb8 {[%emt 0:02:03]} 13. a5 {[%emt 0:00:32]} bxa5 {[%emt 0:00:02]} 14. Nb3 {[%emt 0:00:05]} Ba8 {[%emt 0:00:09]} 15. Nxa5 {[%emt 0:02:41]} Rxb2 {[%emt 0:02:59]} 16. Nb3 {[%emt 0:00:02]} Qb7 {[%emt 0:00:02]} 17. Nd4 {[%emt 0:00:01]} Nc5 {[%emt 0:01:16]} 18. Na4 {[%emt 0:01:56]} Rb4 {[%emt 0:01:31]} 19. Bd2 {[%emt 0:00:44]} Rxa4 {[%emt 0:00:13]} 20. Rxa4 {[%emt 0:00:01]} Nxa4 {[%emt 0:00:02]} 21. Qxa4+ {[%emt 0:00:02]} Nd7 {[%emt 0:00:04]} 22. c5 {[%emt 0:02:34]} dxc5 {[%emt 0:01:20]} 23. Bxa6 {[%emt 0:00:02]} Qb2 {[%emt 0:01:03]} 24. Nb3 {[%emt 0:03:02]} Bd6 {[%emt 0:05:27]} 25. Bc1 {[%emt 0:02:58]} Qe5 {[%emt 0:00:09]} 26. g3 {[%emt 0:00:24]} Qc3 {[%emt 0:01:20]} 27. Bb5 {[%emt 0:00:22]} Ke7 {[%emt 0:00:11]} 28. Bxd7 {[%emt 0:00:16]} c4 {[%emt 0:00:11]} 29. Bd2 {[%emt 0:00:40]} Qxb3 {[%emt 0:00:07]} 30. Qa7 {[%emt 0:00:13]} Qb7 {[%emt 0:00:17]} 31. Qxb7 {[%emt 0:00:02]} Bxb7 {[%emt 0:00:01]} 32. Bb5 {[%emt 0:00:01]} Rc8 {[%emt 0:00:27]} 33. Rc1 {[%emt 0:00:06]} f5 {[%emt 0:00:04]} 34. exf5 {[%emt 0:00:33]} exf5 {[%emt 0:00:01]} 35. Rxc4 {[%emt 0:00:04]} Rxc4 36. Bxc4 {[%emt 0:00:01]} Bxf3 {[%emt 0:00:07]} 37. Kf2 {[%emt 0:00:04]} Be4 {[%emt 0:00:02]} 38. Be3 {[%emt 0:00:01]} Be5 {[%emt 0:00:13]} 39. Bg8 {[%emt 0:00:02]} h6 {[%emt 0:00:07]} 40. h3 {[%emt 0:00:12]} g5 {[%emt 0:00:06]} 41. Bh7 {[%emt 0:00:11]} Bxg3+ {[%emt 0:01:03]} 42. Kxg3 {[%emt 0:00:12]} f4+ {[%emt 0:00:00]} 43. Kh2 {[%emt 0:00:15]} fxe3 {[%emt 0:00:09]} 1/2-1/2

[Event "Hungarian Rapid-ch 2022"]
[Site "Ajka"]
[Date "2022.07.15"]
[Round "2.6"]
[White "Prohaszka, Peter"]
[Black "Szalanczi, Emil"]
[Result "1-0"]
[ECO "D94"]
[WhiteElo "2570"]
[BlackElo "2042"]
[Annotator "ChessBase"]
[PlyCount "65"]
[EventDate "2022.07.15"]
[EventType "swiss"]
[EventCountry "HUN"]
[SourceTitle "playchess.com"]
[Source "ChessBase"]
[SourceQuality "1"]
[TimeControl "900+10"]

1. d4 {[%emt 0:00:17]} Nf6 {[%emt 0:01:32]} 2. c4 {[%emt 0:00:09]} g6 {[%emt 0:00:02]} 3. Nc3 {[%emt 0:00:11]} d5 {[%emt 0:00:01]} 4. Nf3 {[%emt 0:00:28]} Bg7 {[%emt 0:00:02]} 5. e3 {[%emt 0:00:01]} O-O {[%emt 0:00:13]} 6. cxd5 {[%emt 0:00:02]} Nxd5 {[%emt 0:00:02]} 7. Bc4 {[%emt 0:00:02]} Nb6 {[%emt 0:00:52]} 8. Bb3 {[%emt 0:00:01]} Nc6 {[%emt 0:00:05]} 9. O-O {[%emt 0:01:16]} e5 {[%emt 0:03:17]} 10. d5 {[%emt 0:01:26]} Na5 {[%emt 0:00:07]} 11. e4 {[%emt 0:00:17]} Bg4 {[%emt 0:01:16]} 12. h3 {[%emt 0:00:20]} Nxb3 {[%emt 0:01:04]} 13. axb3 {[%emt 0:00:03]} Bxf3 {[%emt 0:01:36]} 14. Qxf3 {[%emt 0:00:02]} c6 {[%emt 0:00:14]} 15. Be3 {[%emt 0:01:55]} Qe7 {[%emt 0:00:43]} 16. Ra5 {[%emt 0:06:58]} Qb4 {[%emt 0:01:27]} 17. Rfa1 {[%emt 0:00:01]} Nd7 {[%emt 0:01:18]} 18. Qd1 {[%emt 0:01:40]} Rfd8 {[%emt 0:00:39]} 19. dxc6 {[%emt 0:01:09]} bxc6 {[%emt 0:00:09]} 20. Rxa7 {[%emt 0:00:06]} Rxa7 {[%emt 0:00:47]} 21. Rxa7 {[%emt 0:00:02]} Qe7 {[%emt 0:00:10]} 22. Bb6 {[%emt 0:00:18]} Nxb6 {[%emt 0:02:23]} 23. Rxe7 {[%emt 0:00:02]} Rxd1+ {[%emt 0:00:02]} 24. Nxd1 {[%emt 0:00:05]} Bf8 {[%emt 0:00:15]} 25. Rc7 {[%emt 0:00:03]} c5 {[%emt 0:00:05]} 26. Nc3 {[%emt 0:00:05]} Kg7 {[%emt 0:00:13]} 27. Na4 {[%emt 0:00:02]} Nxa4 {[%emt 0:00:29]} 28. bxa4 {[%emt 0:00:02]} Kf6 {[%emt 0:00:07]} 29. a5 {[%emt 0:00:02]} Bd6 {[%emt 0:00:09]} 30. Rc6 {[%emt 0:00:02]} Ke6 {[%emt 0:00:00]} 31. a6 {[%emt 0:00:01]} Kd7 {[%emt 0:00:02]} 32. Rxd6+ {[%emt 0:00:01]} Kxd6 {[%emt 0:00:02]} 33. a7 {[%emt 0:00:24]} 1-0

[Event "Hungarian Rapid-ch 2022"]
[Site "Ajka"]
[Date "2022.07.15"]
[Round "2.7"]
[White "Hardicsay, Peter"]
[Black "Kozak, Adam"]
[Result "1/2-1/2"]
[ECO "A17"]
[WhiteElo "2199"]
[BlackElo "2522"]
[Annotator "ChessBase"]
[PlyCount "143"]
[EventDate "2022.07.15"]
[EventType "swiss"]
[EventCountry "HUN"]
[SourceTitle "playchess.com"]
[Source "ChessBase"]
[SourceQuality "1"]
[TimeControl "900+10"]

1. c4 {[%emt 0:00:11]} Nf6 {[%emt 0:00:15]} 2. Nc3 {[%emt 0:00:03]} e6 {[%emt 0:00:02]} 3. Nf3 {[%emt 0:00:04]} b6 {[%emt 0:00:47]} 4. g3 {[%emt 0:00:12]} Bb7 {[%emt 0:00:03]} 5. Bg2 {[%emt 0:00:02]} Be7 {[%emt 0:00:04]} 6. O-O {[%emt 0:00:03]} O-O {[%emt 0:00:03]} 7. Re1 {[%emt 0:00:06]} Ne4 {[%emt 0:00:30]} 8. Nxe4 {[%emt 0:00:11]} Bxe4 {[%emt 0:00:01]} 9. d3 {[%emt 0:00:09]} Bb7 {[%emt 0:00:03]} 10. e4 {[%emt 0:00:19]} c5 {[%emt 0:00:02]} 11. b3 {[%emt 0:00:34]} Bf6 {[%emt 0:00:29]} 12. e5 {[%emt 0:00:42]} Be7 {[%emt 0:00:03]} 13. Bb2 {[%emt 0:00:12]} Nc6 {[%emt 0:00:16]} 14. d4 {[%emt 0:00:29]} Nxd4 {[%emt 0:00:39]} 15. Nxd4 {[%emt 0:00:07]} Bxg2 {[%emt 0:00:03]} 16. Nxe6 {[%emt 0:00:22]} fxe6 {[%emt 0:00:05]} 17. Kxg2 {[%emt 0:00:03]} Qc7 {[%emt 0:00:28]} 18. Qd3 {[%emt 0:00:32]} Rf7 {[%emt 0:00:52]} 19. Rad1 {[%emt 0:01:04]} Raf8 {[%emt 0:02:23]} 20. Rd2 {[%emt 0:02:43]} Bd8 {[%emt 0:00:46]} 21. Qe4 {[%emt 0:00:17]} Qc8 {[%emt 0:02:31]} 22. Bc3 {[%emt 0:00:53]} Bg5 {[%emt 0:00:22]} 23. Rde2 {[%emt 0:00:25]} Bd8 {[%emt 0:02:02]} 24. Rd1 {[%emt 0:00:40]} g5 {[%emt 0:00:36]} 25. Rd3 {[%emt 0:00:59]} Rg7 {[%emt 0:00:50]} 26. Rf3 {[%emt 0:01:18]} Rxf3 {[%emt 0:02:10]} 27. Qxf3 {[%emt 0:00:07]} Bc7 {[%emt 0:00:14]} 28. h3 {[%emt 0:00:22]} Qe8 {[%emt 0:00:32]} 29. Rd2 {[%emt 0:00:52]} Rf7 {[%emt 0:00:13]} 30. Qb7 {[%emt 0:00:34]} Bb8 {[%emt 0:00:06]} 31. Qe4 {[%emt 0:00:11]} Qf8 {[%emt 0:00:32]} 32. Re2 {[%emt 0:00:18]} Bc7 {[%emt 0:00:46]} 33. Qb7 {[%emt 0:00:36]} Bb8 {[%emt 0:00:02]} 34. Qe4 {[%emt 0:00:05]} Qc8 {[%emt 0:00:32]} 35. a4 {[%emt 0:00:36]} Bc7 {[%emt 0:00:03]} 36. Rd2 {[%emt 0:00:24]} Bd8 {[%emt 0:00:28]} 37. Rd3 {[%emt 0:00:18]} Rg7 {[%emt 0:00:37]} 38. Bd2 {[%emt 0:00:54]} Be7 {[%emt 0:00:32]} 39. Rf3 {[%emt 0:01:11]} Rg6 {[%emt 0:00:23]} 40. Bc3 {[%emt 0:00:41]} Rg7 {[%emt 0:00:13]} 41. Bd2 {[%emt 0:00:19]} Qb8 {[%emt 0:00:01]} 42. Bc3 {[%emt 0:00:10]} Bd8 {[%emt 0:00:19]} 43. Rd3 {[%emt 0:00:32]} Kf8 {[%emt 0:00:03]} 44. Rf3+ {[%emt 0:00:25]} Kg8 {[%emt 0:00:01]} 45. Rd3 {[%emt 0:00:05]} Qc8 {[%emt 0:00:03]} 46. Bd2 {[%emt 0:00:17]} Be7 {[%emt 0:00:08]} 47. Rf3 {[%emt 0:00:10]} Qb8 {[%emt 0:00:34]} 48. Bc3 {[%emt 0:00:15]} Bf8 {[%emt 0:00:11]} 49. Bd2 {[%emt 0:00:24]} Qe8 {[%emt 0:00:04]} 50. Bc3 {[%emt 0:00:14]} Qc8 {[%emt 0:00:16]} 51. Bd2 {[%emt 0:00:05]} Be7 {[%emt 0:00:07]} 52. Bc3 {[%emt 0:00:07]} Qe8 {[%emt 0:00:12]} 53. Bd2 {[%emt 0:00:09]} Bf8 {[%emt 0:00:11]} 54. Bc3 {[%emt 0:00:06]} Qb8 {[%emt 0:00:04]} 55. Bd2 {[%emt 0:00:11]} Be7 {[%emt 0:00:01]} 56. Bc3 {[%emt 0:00:01]} Bd8 {[%emt 0:00:01]} 57. Rd3 {[%emt 0:00:12]} Bc7 {[%emt 0:00:24]} 58. Rf3 {[%emt 0:00:10]} Qd8 {[%emt 0:00:09]} 59. Rd3 {[%emt 0:00:10]} Qc8 {[%emt 0:00:06]} 60. Rf3 {[%emt 0:00:04]} Qb8 {[%emt 0:00:16]} 61. Rd3 {[%emt 0:00:11]} Qc8 {[%emt 0:00:14]} 62. Rf3 {[%emt 0:00:03]} Qe8 {[%emt 0:00:01]} 63. Rd3 {[%emt 0:00:09]} h5 {[%emt 0:00:03]} 64. g4 {[%emt 0:00:19]} Qc8 {[%emt 0:00:32]} 65. Rf3 {[%emt 0:00:12]} hxg4 {[%emt 0:00:07]} 66. hxg4 {[%emt 0:00:02]} Bd8 {[%emt 0:00:04]} 67. Rh3 {[%emt 0:00:12]} Be7 {[%emt 0:00:08]} 68. Rf3 {[%emt 0:00:04]} Qb8 {[%emt 0:00:16]} 69. Rd3 {[%emt 0:00:06]} Qc8 {[%emt 0:00:13]} 70. Rf3 {[%emt 0:00:03]} Qb8 {[%emt 0:00:12]} 71. Rd3 {[%emt 0:00:03]} Qc8 {[%emt 0:00:09]} 72. Rf3 {[%emt 0:00:04]} 1/2-1/2